bitfinex/quotes_SOLUSD_20230703
["timestamp","ask_amount","ask_price","bid_price","bid_amount"]
[1688375147292,179.476,19.361,19.35,21.86]
[1688375147496,179.476,19.361,19.346,56.289]
[1688375147497,35.86,19.36,19.346,56.289]
[1688375147816,78.115,19.356,19.347,21.862]
[1688375148012,55.0,19.355,19.346,21.864]
[1688375148192,21.857,19.353,19.346,21.864]
[1688375148396,55.0,19.352,19.346,21.864]
[1688375148619,21.86,19.351,19.346,21.864]
[1688375148799,55.0,19.35,19.346,21.864]
[1688375149116,21.861,19.349,19.346,21.864]
[1688375150604,21.861,19.349,19.341,92.0248]
[1688375150806,55.0,19.348,19.341,92.0248]
[1688375150999,21.865,19.346,19.336,56.318]
[1688375151309,21.865,19.346,19.337,21.874]
[1688375151619,21.868,19.343,19.337,21.874]
[1688375152002,55.0,19.342,19.337,21.874]
[1688375152303,76.869,19.342,19.337,21.874]
[1688375155025,21.869,19.342,19.337,21.874]
[1688375155821,21.869,19.342,19.335,21.876]
[1688375156123,21.872,19.34,19.335,21.877]
[1688375156304,55.0,19.341,19.335,21.877]
[1688375156305,21.874,19.338,19.335,21.877]
[1688375156915,21.873,19.339,19.335,21.877]
[1688375157113,55.0,19.338,19.335,21.877]
[1688375157616,55.0,19.339,19.335,21.877]
[1688375160430,55.0,19.34,19.335,21.877]
[1688375160820,76.872,19.34,19.335,21.877]
[1688375161323,76.872,19.34,19.331,21.881]
[1688375161508,92.682,19.34,19.327,94.7689]
[1688375161711,92.682,19.34,19.328,71.885]
[1688375162729,92.682,19.34,19.328,41.885]
[1688375164721,92.682,19.34,19.328,21.885]
[1688375164722,20.0,19.339,19.328,21.885]
[1688375164921,21.876,19.336,19.328,21.885]
[1688375165126,55.0,19.335,19.328,21.885]
[1688375165427,76.877,19.335,19.328,21.885]
[1688375168526,55.0,19.335,19.328,21.885]
[1688375169626,76.877,19.335,19.328,21.885]
[1688375176537,76.877,19.335,19.327,21.886]
[1688375184524,20.0,19.339,19.327,124.695]
[1688375184723,21.875,19.337,19.327,21.886]
[1688375185936,55.0,19.336,19.327,21.886]
[1688375186140,21.879,19.334,19.327,21.886]
[1688375186341,55.0,19.333,19.327,21.886]
[1688375186545,21.881,19.332,19.327,21.886]
[1688375187438,55.0,19.331,19.327,21.886]
[1688375187829,55.0,19.332,19.327,21.886]
[1688375190435,55.0,19.333,19.327,21.886]
[1688375191042,76.879,19.333,19.327,21.886]
[1688375195546,55.0,19.333,19.327,21.886]
[1688375195844,21.881,19.332,19.327,21.886]
[1688375196037,76.88,19.333,19.327,21.886]
[1688375196750,55.0,19.333,19.327,21.886]
[1688375197752,55.0,19.334,19.327,21.886]
[1688375198439,56.312,19.339,19.327,21.886]
[1688375198651,102.736,19.341,19.33,15.79]
[1688375198652,56.305,19.341,19.33,15.79]
[1688375198858,21.871,19.341,19.334,21.878]
[1688375200037,55.0,19.34,19.334,21.878]
[1688375200343,21.873,19.339,19.334,21.878]
[1688375200545,55.0,19.338,19.334,21.878]
[1688375200742,76.874,19.338,19.334,21.878]
[1688375202455,55.0,19.338,19.334,21.878]
[1688375202643,55.0,19.339,19.334,21.878]
[1688375209369,76.873,19.339,19.334,21.878]
[1688375213969,55.0,19.339,19.334,21.878]
[1688375214668,55.0,19.34,19.334,21.878]
[1688375215781,76.871,19.34,19.334,21.878]
[1688375216179,55.0,19.34,19.333,21.879]
[1688375216385,41.873,19.339,19.332,21.88]
[1688375216562,21.873,19.339,19.333,21.879]
[1688375216768,21.872,19.34,19.333,21.879]
[1688375216970,55.0,19.339,19.333,21.879]
[1688375217494,76.873,19.339,19.333,21.879]
[1688375217785,55.0,19.339,19.333,21.879]
[1688375218292,76.872,19.339,19.333,21.879]
[1688375224192,55.0,19.339,19.333,21.879]
[1688375224386,76.873,19.339,19.333,21.879]
[1688375229894,55.0,19.339,19.333,21.879]
[1688375231699,76.873,19.339,19.333,21.879]
[1688375239499,20.0,19.338,19.333,21.879]
[1688375239800,21.875,19.337,19.333,21.879]
[1688375239982,20.0,19.338,19.333,21.879]
[1688375239983,55.0,19.336,19.333,21.879]
[1688375240384,55.0,19.337,19.333,21.879]
[1688375240984,21.877,19.336,19.332,21.879]
[1688375241399,21.877,19.336,19.331,21.881]
[1688375241791,21.877,19.336,19.33,21.882]
[1688375241987,21.877,19.336,19.329,21.883]
[1688375242488,55.0,19.335,19.329,21.883]
[1688375242688,21.879,19.334,19.329,21.883]
[1688375242893,55.0,19.333,19.329,21.883]
[1688375243103,76.88,19.333,19.329,21.883]
[1688375249006,56.318,19.337,19.329,21.883]
[1688375249203,21.879,19.334,19.329,21.883]
[1688375251114,55.0,19.333,19.328,21.885]
[1688375251312,21.881,19.332,19.327,21.885]
[1688375251507,55.0,19.331,19.327,21.885]
[1688375253114,76.882,19.331,19.327,21.885]
[1688375254014,55.0,19.331,19.327,21.885]
[1688375254198,76.882,19.331,19.327,21.885]
[1688375254604,55.0,19.331,19.327,21.885]
[1688375254813,76.882,19.331,19.327,21.885]
[1688375254999,55.0,19.331,19.327,21.885]
[1688375255797,76.882,19.331,19.327,21.885]
[1688375255997,55.0,19.331,19.327,21.885]
[1688375260731,21.881,19.332,19.327,21.885]
[1688375261518,55.0,19.331,19.327,21.885]
[1688375261908,15.81,19.35,19.328,328.3]
[1688375262105,102.716,19.345,19.332,21.879]
[1688375262318,78.18,19.34,19.33,37.671]
[1688375262639,78.18,19.34,19.332,21.88]
[1688375263332,21.872,19.34,19.332,21.88]
[1688375263511,55.0,19.339,19.332,21.88]
[1688375263711,21.874,19.338,19.332,21.88]
[1688375263926,55.0,19.337,19.332,21.88]
[1688375264725,55.0,19.338,19.332,21.88]
[1688375266633,55.0,19.339,19.332,21.88]
[1688375266814,76.872,19.339,19.332,21.88]
[1688375267015,55.0,19.339,19.332,21.88]
[1688375267432,55.0,19.34,19.332,21.88]
[1688375267632,55.0,19.341,19.332,21.88]
[1688375268924,76.87,19.341,19.332,21.88]
[1688375269126,55.0,19.341,19.332,21.88]
[1688375269327,76.87,19.341,19.332,21.88]
[1688375269923,55.0,19.341,19.332,21.88]
[1688375270321,21.869,19.343,19.332,21.88]
[1688375270322,55.0,19.342,19.332,21.88]
[1688375273115,55.0,19.343,19.332,21.88]
[1688375273330,21.866,19.346,19.332,21.88]
[1688375274324,21.864,19.347,19.332,21.88]
[1688375275029,21.863,19.348,19.332,21.88]
[1688375276032,21.863,19.348,19.333,308.3]
[1688375276224,21.863,19.348,19.337,489.242]
[1688375276722,55.0,19.347,19.337,489.242]
[1688375277537,76.864,19.347,19.337,180.942]
[1688375280221,76.864,19.347,19.337,21.874]
[1688375280417,87.70119922,19.347,19.337,21.874]
[1688375280635,10.83719922,19.346,19.337,21.874]
[1688375280825,21.868,19.344,19.337,21.874]
[1688375281028,55.0,19.343,19.337,21.874]
[1688375281228,21.87,19.342,19.337,21.874]
[1688375281524,133.176,19.341,19.334,21.878]
[1688375281730,76.871,19.341,19.332,56.331]
[1688375282121,76.871,19.341,19.336,21.875]
[1688375285541,76.871,19.341,19.335,21.876]
[1688375287750,55.0,19.341,19.335,21.876]
[1688375289046,76.87,19.341,19.335,21.876]
[1688375293336,55.0,19.341,19.335,78.198]
[1688375293526,76.87,19.341,19.335,78.198]
[1688375296433,76.87,19.341,19.335,21.876]
[1688375296629,20.0,19.34,19.335,21.876]
[1688375296834,76.873,19.339,19.335,21.876]
[1688375297030,76.873,19.339,19.334,21.877]
[1688375297235,20.0,19.338,19.334,21.877]
[1688375297452,55.0,19.337,19.334,21.877]
[1688375297754,76.875,19.337,19.334,21.877]
[1688375298457,76.875,19.337,19.333,21.878]
[1688375299356,56.336,19.343,19.333,21.878]
[1688375299563,21.864,19.347,19.333,21.878]
[1688375300435,32.70119922,19.347,19.333,21.878]
[1688375300833,21.869,19.343,19.333,21.878]
[1688375301036,21.871,19.341,19.333,21.878]
[1688375301340,55.0,19.34,19.333,21.878]
[1688375301739,55.0,19.341,19.333,21.878]
[1688375303551,76.869,19.342,19.333,21.878]
[1688375303745,55.0,19.342,19.333,21.878]
[1688375304944,76.869,19.342,19.333,21.878]
[1688375305758,55.0,19.342,19.333,21.878]
[1688375307753,133.172,19.342,19.333,21.878]
[1688375308052,76.87,19.342,19.333,78.206]
[1688375312665,55.0,19.342,19.333,78.206]
[1688375312962,55.0,19.343,19.333,78.206]
[1688375313141,76.868,19.343,19.333,78.206]
[1688375317570,55.0,19.343,19.333,78.206]
[1688375318348,76.868,19.343,19.333,78.206]
[1688375318546,55.0,19.343,19.333,78.206]
[1688375318746,76.869,19.343,19.333,78.206]
[1688375319144,55.0,19.343,19.333,78.206]
[1688375319773,55.0,19.343,19.333,386.506]
[1688375320066,21.866,19.345,19.333,386.506]
[1688375320857,21.866,19.345,19.333,78.206]
[1688375321257,21.87,19.341,19.333,78.206]
[1688375321462,55.0,19.34,19.333,78.206]
[1688375322454,76.871,19.34,19.333,78.206]
[1688375322656,55.0,19.34,19.333,78.206]
[1688375323753,21.87,19.342,19.333,386.506]
[1688375323968,55.0,19.341,19.333,386.506]
[1688375324772,174.776,19.35,19.333,386.506]
[1688375325080,21.866,19.345,19.333,386.506]
[1688375325263,21.865,19.346,19.333,386.506]
[1688375326063,55.0,19.345,19.333,386.506]
[1688375326676,76.866,19.345,19.333,386.506]
[1688375330678,21.866,19.345,19.333,386.506]
[1688375333595,21.87,19.341,19.333,386.506]
[1688375337786,55.0,19.344,19.333,386.506]
[1688375339083,21.869,19.343,19.333,386.506]
[1688375339285,55.0,19.342,19.333,386.506]
[1688375339977,76.869,19.342,19.333,386.506]
[1688375341183,76.869,19.342,19.333,21.878]
[1688375345590,21.869,19.342,19.333,21.878]
[1688375345795,21.867,19.344,19.333,21.878]
[1688375346093,44.88361431,19.359,19.333,21.878]
[1688375346296,20.0,19.353,19.333,21.878]
[1688375346471,21.863,19.347,19.333,21.878]
[1688375348973,21.869,19.343,19.333,21.878]
[1688375358399,102.695,19.349,19.333,21.878]
[1688375358400,21.867,19.344,19.333,21.878]
[1688375368299,21.867,19.344,19.334,308.3]
[1688375368511,21.867,19.344,19.337,330.175]
[1688375379812,21.867,19.344,19.337,21.875]
[1688375397831,56.285,19.348,19.337,21.875]
[1688375398123,55.0,19.347,19.337,21.875]
[1688375399126,21.867,19.345,19.337,21.875]
[1688375399313,55.0,19.344,19.337,21.875]
[1688375399517,76.867,19.344,19.337,21.875]
[1688375400327,56.285,19.348,19.337,21.875]
[1688375400510,56.279,19.35,19.337,21.875]
[1688375400814,20.0,19.349,19.337,21.875]
[1688375401317,21.863,19.348,19.337,21.875]
[1688375401930,55.0,19.347,19.337,21.875]
[1688375402149,21.865,19.346,19.337,21.875]
[1688375403637,21.864,19.347,19.337,21.875]
[1688375403819,21.865,19.346,19.337,21.875]
[1688375404140,56.265,19.355,19.34,15.79]
[1688375404315,21.86,19.35,19.346,21.864]
[1688375404508,21.86,19.351,19.346,21.864]
[1688375405421,21.859,19.352,19.346,21.864]
[1688375408728,102.642,19.359,19.346,21.864]
[1688375408729,56.259,19.357,19.346,21.864]
[1688375408932,55.0,19.356,19.346,21.864]
[1688375409231,21.855,19.355,19.346,21.864]
[1688375409431,76.856,19.354,19.346,21.864]
[1688375412527,55.0,19.354,19.346,21.864]
[1688375412721,76.855,19.354,19.346,21.864]
[1688375412921,55.0,19.354,19.346,21.864]
[1688375413425,76.856,19.354,19.346,21.864]
[1688375413625,55.0,19.354,19.346,21.864]
[1688375413848,76.855,19.354,19.346,21.864]
[1688375414022,55.0,19.354,19.346,21.864]
[1688375415540,76.856,19.354,19.346,21.864]
[1688375415726,55.0,19.354,19.346,21.864]
[1688375416648,15.81,19.36,19.346,21.864]
[1688375416829,75.0,19.359,19.346,21.864]
[1688375418129,21.852,19.357,19.346,21.864]
[1688375418333,55.0,19.356,19.346,21.864]
[1688375418534,76.854,19.356,19.346,21.864]
[1688375424129,133.115,19.356,19.346,21.864]
[1688375424326,133.115,19.356,19.344,308.3]
[1688375424545,133.115,19.356,19.346,21.864]
[1688375435859,76.854,19.356,19.346,21.864]
[1688375444847,21.854,19.356,19.346,330.164]
[1688375446446,55.0,19.355,19.346,330.164]
[1688375446650,21.856,19.354,19.346,330.164]
[1688375448568,55.0,19.355,19.346,330.164]
[1688375448767,76.855,19.355,19.346,330.164]
[1688375450145,21.855,19.355,19.346,330.164]
[1688375450854,55.0,19.354,19.346,330.164]
[1688375451054,21.858,19.352,19.346,330.164]
[1688375451369,55.0,19.351,19.346,330.164]
[1688375451573,76.86,19.351,19.346,330.164]
[1688375452753,76.86,19.351,19.346,21.864]
[1688375457376,55.0,19.351,19.346,21.864]
[1688375461081,76.859,19.351,19.345,21.865]
[1688375462162,15.81,19.35,19.339,102.744]
[1688375462364,15.81,19.35,19.334,308.3]
[1688375462365,21.864,19.347,19.334,308.3]
[1688375462568,55.0,19.346,19.337,21.874]
[1688375462881,21.868,19.344,19.337,21.874]
[1688375463183,76.869,19.343,19.337,21.874]
[1688375464375,76.869,19.343,19.333,159.101]
[1688375464376,76.869,19.343,19.331,56.332]
[1688375465580,76.869,19.343,19.334,21.877]
[1688375469485,56.291,19.346,19.335,308.3]
[1688375469775,20.0,19.349,19.338,386.486]
[1688375470569,21.865,19.346,19.338,386.486]
[1688375470978,76.866,19.345,19.338,386.486]
[1688375472084,55.0,19.345,19.338,386.486]
[1688375472787,76.866,19.345,19.338,386.486]
[1688375473887,56.28,19.35,19.339,20.0]
[1688375474095,21.862,19.349,19.342,21.869]
[1688375475372,21.861,19.35,19.342,21.869]
[1688375475683,76.861,19.349,19.342,21.869]
[1688375477873,55.0,19.349,19.342,21.869]
[1688375482489,76.861,19.349,19.342,21.869]
[1688375482691,55.0,19.349,19.342,21.869]
[1688375483290,76.861,19.349,19.342,21.869]
[1688375483490,55.0,19.349,19.342,21.869]
[1688375483792,76.861,19.349,19.342,21.869]
[1688375483991,55.0,19.349,19.342,21.869]
[1688375487291,26.84409848,19.371,19.342,32.70619922]
[1688375487493,20.0,19.359,19.343,308.3]
[1688375487682,20.0,19.359,19.347,180.846]
[1688375487883,20.0,19.359,19.347,489.146]
[1688375488084,20.0,19.363,19.347,489.146]
[1688375488494,55.0,19.362,19.347,489.146]
[1688375488781,20.0,19.361,19.347,489.146]
[1688375489003,55.0,19.36,19.347,489.146]
[1688375489311,21.852,19.358,19.347,489.146]
[1688375489490,55.0,19.357,19.347,489.146]
[1688375489689,76.852,19.357,19.347,489.146]
[1688375490087,55.0,19.357,19.347,489.146]
[1688375490586,55.0,19.358,19.347,489.146]
[1688375490987,21.852,19.357,19.347,489.146]
[1688375491297,55.0,19.356,19.347,489.146]
[1688375491484,21.853,19.356,19.347,489.146]
[1688375491685,72.06,19.36,19.347,489.146]
[1688375491885,56.244,19.362,19.35,15.9]
[1688375492085,21.851,19.359,19.353,21.856]
[1688375492301,55.0,19.358,19.353,21.856]
[1688375494509,55.0,19.359,19.353,21.856]
[1688375497599,55.0,19.36,19.353,21.856]
[1688375498189,21.846,19.363,19.353,21.856]
[1688375499600,55.0,19.362,19.353,21.856]
[1688375503403,21.846,19.363,19.353,21.856]
[1688375503906,56.234,19.366,19.353,21.856]
[1688375504210,21.845,19.364,19.353,21.856]
[1688375504601,56.227,19.368,19.353,21.856]
[1688375504789,55.0,19.367,19.353,21.856]
[1688375505409,21.845,19.364,19.353,21.856]
[1688375505614,55.0,19.363,19.353,21.856]
[1688375505906,76.846,19.363,19.353,21.856]
[1688375512405,55.0,19.363,19.353,21.856]
[1688375512908,55.0,19.364,19.354,308.3]
[1688375513093,55.0,19.364,19.357,78.11]
[1688375514891,56.225,19.369,19.357,386.41]
[1688375515197,21.838,19.37,19.361,78.092]
[1688375517311,55.0,19.369,19.361,78.092]
[1688375519689,21.837,19.371,19.364,78.079]
[1688375520597,21.837,19.371,19.364,21.843]
[1688375521006,55.0,19.37,19.364,21.843]
[1688375521210,21.839,19.369,19.364,21.843]
[1688375521409,55.0,19.368,19.364,21.843]
[1688375522114,21.838,19.37,19.364,21.843]
[1688375522313,55.0,19.369,19.364,21.843]
[1688375522501,76.839,19.369,19.364,21.843]
[1688375523200,55.0,19.369,19.364,21.843]
[1688375523805,55.0,19.37,19.364,21.843]
[1688375528502,76.837,19.37,19.364,21.843]
[1688375528703,55.0,19.37,19.364,21.843]
[1688375528916,76.837,19.37,19.364,21.843]
[1688375529102,55.0,19.37,19.364,21.843]
[1688375530421,76.838,19.37,19.364,21.843]
[1688375534418,55.0,19.37,19.364,78.081]
[1688375534607,102.552,19.376,19.364,21.843]
[1688375534608,55.0,19.371,19.364,21.843]
[1688375534807,37.697,19.37,19.364,21.843]
[1688375535127,21.84,19.368,19.364,21.843]
[1688375535320,55.0,19.367,19.364,21.843]
[1688375535517,76.841,19.367,19.364,21.843]
[1688375535829,55.0,19.367,19.364,21.843]
[1688375538432,55.0,19.368,19.364,21.843]
[1688375538612,76.84,19.368,19.364,21.843]
[1688375538930,55.0,19.368,19.364,21.843]
[1688375539929,76.839,19.369,19.364,21.843]
[1688375541138,55.0,19.369,19.364,21.843]
[1688375545831,55.0,19.37,19.364,21.843]
[1688375546436,76.838,19.37,19.364,21.843]
[1688375556439,55.0,19.37,19.364,21.843]
[1688375557435,55.0,19.371,19.364,21.843]
[1688375557637,55.0,19.369,19.364,21.843]
[1688375557838,55.0,19.371,19.364,21.843]
[1688375558041,76.836,19.371,19.364,21.843]
[1688375561650,21.836,19.371,19.364,21.843]
[1688375561948,118.339,19.38,19.368,21.84]
[1688375562129,20.0,19.379,19.368,21.84]
[1688375562828,21.832,19.375,19.368,21.84]
[1688375563033,55.0,19.374,19.368,21.84]
[1688375563237,76.833,19.374,19.368,21.84]
[1688375569047,21.832,19.375,19.368,21.84]
[1688375575248,21.835,19.373,19.367,21.84]
[1688375575456,55.0,19.372,19.367,21.84]
[1688375575651,21.837,19.371,19.367,21.84]
[1688375576843,76.836,19.372,19.367,21.84]
[1688375580858,55.0,19.372,19.367,21.84]
[1688375581064,76.835,19.372,19.363,21.844]
[1688375581362,76.835,19.372,19.364,21.843]
[1688375593074,55.0,19.372,19.364,21.843]
[1688375593576,21.833,19.374,19.364,21.843]
[1688375593774,87.03319922,19.379,19.364,21.843]
[1688375593775,21.833,19.375,19.364,21.843]
[1688375595076,55.0,19.374,19.364,21.843]
[1688375595277,76.834,19.374,19.364,21.843]
[1688375598773,55.0,19.38,19.364,21.843]
[1688375599076,21.827,19.38,19.373,21.834]
[1688375599274,21.824,19.382,19.373,21.834]
[1688375601470,55.0,19.381,19.373,21.834]
[1688375601866,76.825,19.381,19.373,21.834]
[1688375608875,21.825,19.381,19.373,21.834]
[1688375609980,55.0,19.38,19.373,21.834]
[1688375610172,76.826,19.38,19.373,21.834]
[1688375610380,55.0,19.38,19.373,21.834]
[1688375620489,55.0,19.379,19.373,21.834]
[1688375620689,55.0,19.381,19.373,21.834]
[1688375621196,76.825,19.381,19.373,21.834]
[1688375621400,55.0,19.381,19.373,21.834]
[1688375622699,21.823,19.383,19.373,330.134]
[1688375624588,55.0,19.382,19.373,330.134]
[1688375624788,76.824,19.382,19.373,330.134]
[1688375627195,55.0,19.382,19.373,330.134]
[1688375628394,76.824,19.382,19.373,330.134]
[1688375631013,76.824,19.382,19.373,21.834]
[1688375643818,55.0,19.382,19.37,15.79]
[1688375644119,76.824,19.382,19.373,21.834]
[1688375654333,21.824,19.382,19.373,330.134]
[1688375656122,55.0,19.381,19.373,330.134]
[1688375656425,76.825,19.381,19.373,330.134]
[1688375658407,76.825,19.381,19.373,21.834]
[1688375665433,102.494,19.387,19.373,21.834]
[1688375665622,158.666,19.387,19.373,21.834]
[1688375667114,21.824,19.383,19.373,21.834]
[1688375667321,55.0,19.382,19.373,21.834]
[1688375667514,76.824,19.382,19.373,21.834]
[1688375669435,21.824,19.382,19.373,330.134]
[1688375670530,55.0,19.381,19.373,330.134]
[1688375671813,55.0,19.382,19.373,330.134]
[1688375674526,76.824,19.382,19.373,330.134]
[1688375681540,21.823,19.383,19.373,330.134]
[1688375681847,21.822,19.384,19.373,420.6874]
[1688375682436,21.821,19.385,19.373,420.6874]
[1688375685848,55.0,19.384,19.373,420.6874]
[1688375686049,21.825,19.381,19.373,420.6874]
[1688375686252,55.0,19.38,19.373,420.6874]
[1688375686434,21.827,19.379,19.373,420.6874]
[1688375686832,76.827,19.38,19.373,112.3874]
[1688375687360,76.827,19.38,19.373,21.834]
[1688375688237,55.0,19.38,19.373,21.834]
[1688375691347,55.0,19.381,19.373,21.834]
[1688375693255,76.825,19.381,19.373,21.834]
[1688375693438,55.0,19.381,19.373,21.834]
[1688375697539,76.825,19.381,19.373,21.834]
[1688375697744,55.0,19.381,19.373,21.834]
[1688375700661,56.166,19.389,19.373,21.834]
[1688375700833,20.0,19.388,19.373,21.834]
[1688375702157,21.821,19.385,19.373,21.834]
[1688375703555,55.0,19.384,19.373,21.834]
[1688375703743,76.823,19.384,19.373,21.834]
[1688375714381,15.81,19.38,19.369,21.838]
[1688375714662,180.576,19.377,19.364,21.844]
[1688375714888,180.576,19.377,19.361,90.679]
[1688375714889,15.86,19.37,19.361,90.679]
[1688375715052,21.842,19.366,19.361,21.847]
[1688375715248,21.841,19.368,19.361,21.847]
[1688375715457,55.0,19.367,19.361,21.847]
[1688375716060,76.841,19.367,19.361,21.847]
[1688375716862,55.0,19.367,19.361,21.847]
[1688375717061,76.84,19.368,19.361,21.847]
[1688375719758,76.84,19.368,19.359,21.849]
[1688375719959,76.84,19.368,19.354,102.665]
[1688375719960,76.84,19.368,19.358,21.85]
[1688375720157,76.84,19.368,19.354,56.266]
[1688375720369,76.84,19.368,19.357,21.851]
[1688375721375,76.84,19.368,19.356,21.852]
[1688375723468,76.84,19.368,19.355,21.853]
[1688375723773,87.67719922,19.368,19.352,56.272]
[1688375725264,87.67719922,19.368,19.356,21.853]
[1688375727956,76.84,19.368,19.356,21.853]
[1688375728756,21.84,19.368,19.356,21.853]
[1688375729363,21.84,19.368,19.357,20.0]
[1688375729661,21.84,19.368,19.36,78.097]
[1688375730058,21.839,19.369,19.36,78.097]
[1688375732470,55.0,19.368,19.36,78.097]
[1688375732679,76.84,19.368,19.36,78.097]
[1688375735982,55.0,19.368,19.36,78.097]
[1688375738372,76.84,19.368,19.36,78.097]
[1688375744585,76.84,19.368,19.36,21.848]
[1688375744771,76.84,19.368,19.356,56.261]
[1688375745083,87.67719922,19.368,19.352,410.974]
[1688375745278,87.67719922,19.368,19.354,30.0]
[1688375745986,87.67719922,19.368,19.352,102.674]
[1688375746185,87.67719922,19.368,19.358,21.85]
[1688375748892,87.67719922,19.368,19.354,56.266]
[1688375749090,87.67719922,19.368,19.357,21.851]
[1688375759211,76.84,19.368,19.357,21.851]
[1688375772512,76.84,19.368,19.356,21.852]
[1688375779604,76.84,19.368,19.353,56.268]
[1688375780223,76.84,19.368,19.355,21.853]
[1688375781111,87.67719922,19.368,19.355,21.853]
[1688375781306,32.67719922,19.368,19.355,330.153]
[1688375781507,21.84,19.368,19.355,21.853]
[1688375782725,55.0,19.367,19.355,21.853]
[1688375782917,21.844,19.364,19.355,21.853]
[1688375783225,55.0,19.363,19.355,21.853]
[1688375783527,76.846,19.363,19.355,21.853]
[1688375783726,55.0,19.363,19.355,21.853]
[1688375784627,21.842,19.366,19.355,21.853]
[1688375784938,55.0,19.365,19.355,21.853]
[1688375786732,76.843,19.365,19.355,21.853]
[1688375792135,157.577,19.371,19.355,21.853]
[1688375792136,55.0,19.371,19.356,308.3]
[1688375792324,56.209,19.374,19.361,308.3]
[1688375792635,21.836,19.371,19.364,21.843]
[1688375792837,21.836,19.372,19.364,21.843]
[1688375793037,56.204,19.376,19.364,21.843]
[1688375794233,21.835,19.373,19.364,21.843]
[1688375794428,55.0,19.372,19.364,21.843]
[1688375798044,76.835,19.372,19.364,21.843]
[1688375798225,55.0,19.372,19.364,21.843]
[1688375798437,56.198,19.378,19.364,21.843]
[1688375799645,55.0,19.377,19.364,21.843]